bitfinex-derivatives/quotes_SOLF0:USTF0_20250216
["timestamp","ask_amount","ask_price","bid_price","bid_amount"]
[1739729968425,0.03623113,188.97,188.94,10.68]
[1739729969327,5.2916,188.95,188.94,10.68]
[1739729969724,5.2914,188.96,188.94,10.68]
[1739729970221,0.03623113,188.97,188.94,10.68]
[1739729970626,5.2916,188.95,188.94,10.68]
[1739729972426,0.03623113,188.97,188.93,0.03388532]
[1739729972427,5.2919,188.94,188.93,0.03388532]
[1739729976433,5.2936,188.88,188.84,2.8505]
[1739729976636,10.88463229,188.93,188.81,129.62463229]
[1739729976935,5.2938,188.88,188.82,8.0098]
[1739729977338,5.2938,188.88,188.82,2.7147]
[1739729977538,0.0340052,188.87,188.83,0.03449332]
[1739729978135,5.3280052,188.87,188.83,0.03449332]
[1739729979242,5.2947,188.85,188.83,0.03449332]
[1739729979443,0.0340052,188.87,188.83,0.03449332]
[1739729979634,5.2944,188.85,188.83,0.03449332]
[1739729981133,10.88463229,188.84,188.75,2.9339]
[1739729981339,10.88463229,188.84,188.74,5.579]
[1739729981533,5.2959,188.8,188.74,5.579]
[1739729981734,10.88463229,188.84,188.74,5.579]
[1739729981936,5.2959,188.8,188.72,10.88463229]
[1739729982130,22.2256,188.86,188.69,10.88463229]
[1739729982131,10.88463229,188.81,188.69,10.88463229]
[1739729982333,0.03946489,188.78,188.74,0.03776605]
[1739729982534,5.2972,188.75,188.74,0.03776605]
[1739729982737,15.89,188.77,188.63,10.88463229]
[1739729982942,10.88463229,188.75,188.6,10.88463229]
[1739729983145,5.298,188.72,188.63,5.3005]
[1739729983336,10.88463229,188.75,188.6,10.88463229]
[1739729983948,0.04071468,188.69,188.66,0.03788926]
[1739729990546,0.04071468,188.69,188.68,5.2992]
[1739729991645,0.04071468,188.69,188.66,10.92252155]
[1739729991951,0.04071468,188.69,188.66,0.03788926]
[1739729995950,5.2992,188.68,188.66,0.03788926]
[1739729996350,0.04071468,188.69,188.66,0.03788926]
[1739729996551,5.33961468,188.69,188.66,0.03788926]
[1739729997048,0.04071468,188.69,188.66,0.03788926]
[1739729999653,5.2992,188.68,188.66,0.03788926]
[1739730000053,0.04071468,188.69,188.66,0.03788926]
[1739730001554,5.33971468,188.69,188.66,0.03788926]
[1739730001757,0.04071468,188.69,188.66,0.03788926]
[1739730001957,0.04071468,188.69,188.66,5.33758926]
[1739730002657,0.04071468,188.69,188.66,0.03788926]
[1739730003056,5.2994,188.68,188.66,0.03788926]
[1739730003556,5.2994,188.67,188.66,0.03788926]
[1739730003756,5.2994,188.67,188.66,8.926e-05]
[1739730005365,194.0,188.68,188.51,10.88463229]
[1739730005559,10.88463229,188.63,188.51,10.88463229]
[1739730006065,5.3009,188.62,188.51,10.88463229]
[1739730006263,10.88463229,188.63,188.51,10.88463229]
[1739730006566,10.88463229,188.63,188.55,0.03805534]
[1739730006567,0.03338859,188.58,188.55,0.03805534]
[1739730006964,10.88463229,188.57,188.45,10.88463229]
[1739730007264,6.5696,188.56,188.45,10.88463229]
[1739730007662,10.88463229,188.54,188.38,9.502]
[1739730007962,10.88463229,188.54,188.42,5.3064]
[1739730008165,0.03512321,188.48,188.44,0.0399291]
[1739730010958,0.03512321,188.48,188.44,6.3865291]
[1739730011363,0.03512321,188.48,188.44,3.1251291]
[1739730011559,0.03512321,188.48,188.44,0.0399291]
[1739730014767,0.03512321,188.48,188.45,5.3055]
[1739730014965,0.03512321,188.48,188.45,5.2600902]
[1739730015164,0.03512321,188.48,188.44,0.0399291]
[1739730016168,57.19027937,188.51,188.5,5.3042]
[1739730016367,42.04567937,188.51,188.5,5.3042]
[1739730016666,176.10417872,188.55,188.54,5.3031]
[1739730017666,171.05687872,188.55,188.54,5.3031]
[1739730017964,157.54577872,188.55,188.54,5.3031]
[1739730018171,0.03526698,188.56,188.53,0.03681467]
[1739730018367,3.0548,188.67,188.53,0.03681467]
[1739730018574,3.3627,188.71,188.57,17.52154926]
[1739730018774,3.3627,188.71,188.6,17.52154926]
[1739730018971,3.3627,188.71,188.65,5.3]
[1739730019272,3.3627,188.71,188.57,17.52154926]
[1739730019469,0.03801824,188.7,188.57,17.52154926]
[1739730019669,0.03801824,188.7,188.66,0.03771347]
[1739730019971,3.3627,188.71,188.57,17.52154926]
[1739730020271,0.0357969,188.7,188.66,0.03377397]
[1739730020468,3.3627,188.71,188.6,17.52154926]
[1739730020671,0.03943821,188.7,188.66,0.03500234]
[1739730021067,0.03943821,188.7,188.66,17.5565516]
[1739730021373,3.0688,188.78,188.66,0.03500234]
[1739730021771,3.0688,188.78,188.63,17.52154926]
[1739730022072,3.0688,188.78,188.66,5.2995]
[1739730022472,0.03544299,188.74,188.7,0.04058653]
[1739730025372,6.21,188.84,188.77,5.2964]
[1739730025573,3.0546,188.84,188.76,17.52154926]
[1739730025773,3.2739,188.88,188.76,17.52154926]
[1739730026375,3.0546,188.91,188.79,17.52154926]
[1739730026675,0.0341583,188.84,188.8,0.04063058]
[1739730027071,5.293,188.9,188.76,17.52154926]
[1739730027373,0.03919592,188.84,188.76,17.52154926]
[1739730027578,0.03919592,188.84,188.81,0.03726334]
[1739730031875,3.1915,188.94,188.81,0.03726334]
[1739730032081,3.1915,188.94,188.82,17.52154926]
[1739730032281,8.4834,188.94,188.83,5.2949]
[1739730032669,194.0,189.02,188.82,17.52154926]
[1739730032878,3.1068,189.01,188.85,17.52154926]
[1739730033078,0.03867956,188.92,188.88,0.03795968]
[1739730035479,5.2933,188.89,188.88,0.03795968]
[1739730035681,3.0765,188.91,188.88,0.03795968]
[1739730036185,3.0765,188.91,188.77,12.58398374]
[1739730036483,5.2939,188.87,188.79,5.2961]
[1739730037186,0.03650223,188.85,188.81,0.03563048]
[1739730044091,0.03650223,188.85,188.81,5.33103048]
[1739730045893,8.3695,188.91,188.83,5.2947]
[1739730046288,8.3695,188.91,188.79,17.52154926]
[1739730046589,5.2931,188.9,188.83,5.2949]
[1739730046990,0.03642737,188.88,188.85,0.03982933]
[1739730051194,0.03642737,188.88,188.87,5.2938]
[1739730051393,0.03642737,188.88,188.85,0.03982933]
[1739730051394,3.1718,188.95,188.85,17.56137859]
[1739730051692,75.88687831,189.0,188.85,17.56137859]
[1739730051893,5.2911,188.97,188.9,5.2928]
[1739730052091,58.36532905,189.0,188.88,17.52154926]
[1739730052599,0.03558093,188.96,188.92,0.03458474]
[1739730055802,5.32698093,188.96,188.92,0.03458474]
[1739730056997,0.03558093,188.96,188.92,0.03458474]
[1739730058403,5.2916,188.95,188.92,0.03458474]
[1739730058903,0.03558093,188.96,188.92,0.03458474]
[1739730059203,5.32718093,188.96,188.92,0.03458474]
[1739730059704,0.03558093,188.96,188.92,0.03458474]
[1739730060404,0.03558093,188.96,188.92,33.837736]
[1739730062603,5.2918,188.95,188.92,33.837736]
[1739730063409,5.32698093,188.96,188.92,33.837736]
[1739730063710,0.03558093,188.96,188.92,33.837736]
[1739730063905,0.03558093,188.96,188.95,21.86215122]
[1739730065006,5.2909,188.98,188.95,21.86215122]
[1739730066412,5.32508363,188.98,188.92,5.32688474]
[1739730066611,5.32508363,188.98,188.92,0.03458474]
[1739730067009,5.2911,188.97,188.92,0.03458474]
[1739730067205,0.03418363,188.98,188.92,0.03458474]
[1739730067714,5.2921,188.93,188.92,0.03458474]
[1739730068414,0.03418363,188.98,188.9,53.17716993]
[1739730068415,17.52154926,188.94,188.9,53.17716993]
[1739730068605,10.90012491,188.92,188.9,39.55236993]
[1739730068811,10.90012491,188.92,188.9,7.96976993]
[1739730069108,10.90012491,188.92,188.88,22.01768672]
[1739730069415,10.90012491,188.89,188.88,22.05757991]
[1739730069916,16.19342491,188.89,188.88,22.05757991]
[1739730070213,16.19342491,188.89,188.88,16.75887991]
[1739730070610,5.2933,188.89,188.88,16.75887991]
[1739730071212,5.2938,188.87,188.86,78.3208049]
[1739730071420,17.44655213,188.87,188.85,2.28105897]
[1739730071613,17.44655213,188.87,188.72,9.5293]
[1739730071812,5.2946,188.85,188.77,5.2966]
[1739730072017,17.44655213,188.87,188.72,9.5293]
[1739730072612,0.03380819,188.82,188.78,0.03387524]
[1739730075016,0.03380819,188.82,188.79,5.296]
[1739730075317,0.03380819,188.82,188.78,0.03387524]
[1739730076324,0.03380819,188.82,188.78,5.32997524]
[1739730077223,5.32900819,188.82,188.78,0.03387524]
[1739730077915,0.03380819,188.82,188.78,0.03387524]
[1739730079216,5.2957,188.81,188.78,0.03387524]
[1739730079418,0.03380819,188.82,188.78,0.03387524]
[1739730079916,5.2958,188.81,188.78,0.03387524]
[1739730080116,0.03380819,188.82,188.78,0.03387524]
[1739730080318,0.03380819,188.82,188.73,200.13411235]
[1739730080319,86.27293307,188.79,188.73,200.13411235]
[1739730081115,86.27293307,188.79,188.74,5.2975]
[1739730081320,86.27293307,188.79,188.73,200.13411235]
[1739730081620,0.03595348,188.78,188.75,0.03598556]
[1739730081822,74.06038498,188.78,188.76,5.2968]
[1739730082219,74.06038498,188.78,188.75,0.03598556]
[1739730083921,57.85479239,188.78,188.75,0.03598556]
[1739730084219,29.86894054,188.79,188.77,17.44655213]
[1739730084423,24.74254054,188.79,188.78,5.2964]
[1739730084722,19.62534054,188.79,188.78,5.2964]
[1739730084923,9.38954054,188.79,188.78,5.2964]
[1739730085723,0.03835111,188.8,188.77,17.44655213]
[1739730085925,0.03835111,188.8,188.75,0.03598556]
[1739730088027,5.2961,188.79,188.75,0.03598556]
[1739730088222,0.03835111,188.8,188.75,0.03598556]
[1739730088625,5.2961,188.79,188.75,0.03598556]
[1739730089428,0.03835111,188.8,188.76,5.2969]
[1739730089625,0.03835111,188.8,188.75,0.03598556]
[1739730090129,0.03835111,188.8,188.76,5.2968]
[1739730090530,0.03835111,188.8,188.75,0.03598556]
[1739730091531,0.03835111,188.8,188.79,5.2961]
[1739730093835,5.111e-05,188.8,188.79,5.2961]
[1739730097332,5.111e-05,188.8,188.77,22.74305213]
[1739730097533,5.111e-05,188.8,188.77,5.2965]
[1739730097739,5.111e-05,188.8,188.75,0.03598556]
[1739730098833,5.2969,188.76,188.75,0.03598556]
[1739730099937,5.2969,188.76,188.69,5.2986]
[1739730100243,5.2973,188.75,188.68,5.2991]
[1739730100838,20.81535213,188.79,188.64,17.44655213]
[1739730101043,0.03458088,188.73,188.7,0.03868632]
[1739730103054,0.03458088,188.73,188.72,5.298]
[1739730103251,86.27293307,188.79,188.71,17.44655213]
[1739730103656,86.27293307,188.79,188.76,5.2967]
[1739730103851,86.27293307,188.79,188.71,17.44655213]
[1739730104057,86.27293307,188.82,188.74,17.44655213]
[1739730104661,0.03889626,188.8,188.76,0.03755515]
[1739730105058,0.03889626,188.8,188.79,5.2961]
[1739730106061,58.17016865,188.84,188.83,5.2949]
[1739730107156,0.03381946,188.85,188.82,0.03504894]
[1739730107964,0.03381946,188.85,188.84,5.2947]
[1739730108365,0.03381946,188.85,188.82,0.03504894]
[1739730108565,0.03381946,188.85,188.84,5.2947]
[1739730110365,0.03381946,188.85,188.83,5.2949]
[1739730111370,0.03381946,188.85,188.82,0.03504894]
[1739730111774,0.03381946,188.85,188.84,5.2947]
[1739730112772,0.03381946,188.85,188.82,0.03504894]
[1739730115368,0.03381946,188.85,188.82,5.33024894]
[1739730115568,0.03381946,188.85,188.82,0.03504894]
[1739730115973,0.03381946,188.85,188.83,5.2949]
[1739730116377,0.03381946,188.85,188.82,0.03504894]
[1739730117174,0.03381946,188.85,188.84,5.2947]
[1739730117773,1.946e-05,188.85,188.84,22.74125213]
[1739730118174,3.3267,188.92,188.84,17.44655213]
[1739730118874,58.17016865,188.94,188.84,17.44655213]
[1739730119374,0.03811119,188.91,188.87,17.48133274]
[1739730120368,0.03811119,188.91,188.9,5.293]
[1739730120569,0.03811119,188.91,188.9,22.73955213]
[1739730121376,0.03811119,188.91,188.9,5.293]
[1739730121770,0.03811119,188.91,188.87,17.48133274]
[1739730122578,0.03811119,188.91,188.9,5.293]
[1739730124273,0.03811119,188.91,188.88,5.2935]
[1739730124480,0.03811119,188.91,188.87,0.03478061]
[1739730124880,0.03811119,188.91,188.78,17.44655213]
[1739730125382,5.2935,188.89,188.81,5.2954]
[1739730125580,3.2061,188.88,188.81,5.2954]
[1739730125776,8.4997,188.88,188.78,17.44655213]
[1739730125975,3.2061,188.88,188.78,17.44655213]
[1739730126175,0.03846175,188.86,188.83,0.03434045]
[1739730128373,0.03846175,188.86,188.85,5.2944]
[1739730129279,6.175e-05,188.86,188.85,5.2944]
[1739730134185,3.2966,188.93,188.89,5.293]
[1739730135389,3.3316801,188.93,188.89,5.32776743]
[1739730135583,3.3316801,188.93,188.9,5.2929]
[1739730135886,3.3316801,188.93,188.89,0.03476743]
[1739730138184,0.0350801,188.93,188.92,5.2924]
[1739730138585,0.0350801,188.93,188.92,16.17833303]
[1739730138978,0.0350801,188.93,188.92,10.88593303]
[1739730139486,0.0350801,188.93,188.92,16.17833303]
[1739730139981,0.0350801,188.93,188.92,10.88593303]
[1739730141088,0.0350801,188.93,188.92,16.17833303]
[1739730141386,0.0350801,188.93,188.92,10.88593303]
[1739730142087,0.0350801,188.93,188.92,16.17833303]
[1739730146989,3.2477,188.98,188.97,5.291]
[1739730147486,58.17016865,189.03,188.95,10.88593303]
[1739730147690,256.88827889,189.05,189.02,10.88593303]
[1739730147984,256.88827889,189.05,189.02,10.9224921]
[1739730148191,248.69939505,189.05,189.04,5.2891]
[1739730149186,207.80290148,189.05,189.04,5.2891]
[1739730149392,196.04339906,189.05,189.04,5.2891]
[1739730149894,196.04339906,189.05,189.03,5.2893]
[1739730150090,0.03471616,189.05,189.03,5.2893]
[1739730150289,6.7475,189.11,189.02,10.9224921]
[1739730150590,6.7475,189.11,189.08,10.88593303]
[1739730151493,6.78184731,189.11,189.08,10.92219497]
[1739730153395,6.78184731,189.11,189.05,10.88593303]
[1739730154295,6.78184731,189.11,189.02,10.88593303]
[1739730154595,5.2886,189.06,189.05,0.03503068]
[1739730154886,10.88593303,189.09,189.01,88.0176]
[1739730155094,10.88593303,189.09,188.96,10.88593303]
[1739730155693,5.2899,189.02,188.96,10.88593303]
[1739730155995,0.0378423,189.04,189.01,0.0348417]
[1739730156191,5.2902,189.01,188.96,10.88593303]
[1739730156391,0.0378423,189.04,188.96,10.88593303]
[1739730156594,0.0378423,189.04,188.93,17.41344204]
[1739730156894,5.2903,189.0,188.93,17.41344204]
[1739730157296,0.03414363,188.98,188.95,0.03484513]
[1739730157495,5.2899,189.02,188.93,22.70554204]
[1739730157690,5.2899,189.02,188.95,0.03746828]
[1739730157894,0.03754577,188.98,188.95,0.03746828]
[1739730158093,5.29,189.01,188.93,22.70554204]
[1739730158295,0.03836717,188.98,188.95,0.03808232]
[1739730165898,0.03836717,188.98,188.96,17.41344204]
[1739730166095,3.109,189.08,188.96,17.41344204]
[1739730166295,3.109,189.08,188.99,17.41344204]
[1739730166995,3.109,189.08,189.02,5.2896]
[1739730167200,0.03586816,189.07,189.03,0.03993511]
[1739730167897,0.03586816,189.07,189.03,5.32923511]
[1739730168702,0.03586816,189.07,189.03,0.03993511]
[1739730170304,5.2891,189.04,189.03,0.03993511]
[1739730171204,3.1755,189.06,188.95,5.2913]
[1739730171799,5.2903,189.0,188.94,5.2918]
[1739730172303,0.038927,188.99,188.95,0.03683811]
[1739730174205,0.038927,188.99,188.95,5.32833811]
[1739730174404,0.038927,188.99,188.95,0.03683811]
[1739730175007,0.038927,188.99,188.95,5.32823811]
[1739730175902,0.038927,188.99,188.95,0.03683811]
[1739730177103,0.038927,188.99,188.95,5.32833811]
[1739730177304,0.038927,188.99,188.95,0.03683811]
[1739730177800,0.038927,188.99,188.97,10.88395565]
[1739730179303,3.1755,189.06,188.97,10.88395565]
[1739730179502,3.1755,189.06,189.01,16.17365565]
[1739730179697,5.288,189.08,189.01,16.17365565]
[1739730180006,194.0,189.1,189.01,10.88395565]
[1739730180506,0.03759784,189.07,189.04,10.92300018]
[1739730180706,3.3878,189.13,189.04,10.88395565]
[1739730181006,3.3878,189.13,189.07,10.88395565]
[1739730181308,0.03768605,189.1,189.07,10.88395565]
[1739730181511,0.03768605,189.1,189.08,0.03869657]
[1739730186701,5.2877,189.09,189.08,0.03869657]
[1739730187109,0.03768605,189.1,189.01,10.88395565]
[1739730188405,5.2888,189.05,189.04,0.03641268]
[1739730188912,5.2902,189.0,188.95,10.88395565]
[1739730189908,0.03416456,188.99,188.96,0.03684598]
[1739730190604,5.32466456,188.99,188.96,0.03684598]
[1739730190801,0.03416456,188.99,188.96,0.03684598]
[1739730191808,5.291,188.98,188.96,0.03684598]
[1739730192012,0.03416456,188.99,188.96,0.03684598]
[1739730192906,5.32466456,188.99,188.96,0.03684598]
[1739730195707,0.03416456,188.99,188.96,0.03684598]
[1739730198512,5.291,188.98,188.96,0.03684598]
[1739730198910,0.03416456,188.99,188.96,0.03684598]
[1739730199212,5.291,188.97,188.96,0.03684598]
[1739730199616,0.03416456,188.99,188.96,0.03684598]
[1739730200318,5.32466456,188.99,188.96,0.03684598]
[1739730200716,0.03416456,188.99,188.96,0.03684598]
[1739730200911,0.03416456,188.99,188.97,10.88395565]
[1739730201114,197.2884,189.09,189.0,10.88395565]
[1739730201620,5.2888,189.05,189.0,10.88395565]
[1739730202119,5.2884,189.07,189.0,10.88395565]
[1739730202319,0.03352829,189.04,189.01,0.04071575]
[1739730202520,0.03352829,189.04,189.03,16.17325565]
[1739730202820,0.03352829,189.04,189.03,10.88395565]
[1739730203519,0.03352829,189.04,189.01,0.04071575]
[1739730203721,5.32282829,189.04,189.01,0.04071575]
[1739730204318,0.03352829,189.04,189.01,0.04071575]
[1739730204921,5.2896,189.02,189.01,0.04071575]
[1739730206121,5.2907,188.99,188.94,10.88395565]
[1739730206424,10.88395565,189.07,188.94,10.88395565]
[1739730206618,5.2897,189.02,188.94,10.88395565]
[1739730207220,0.03724549,189.0,188.96,0.03945066]
[1739730208220,0.03724549,189.0,188.97,10.88395565]
[1739730208921,5.2885,189.06,188.97,10.88395565]
[1739730209128,194.0,189.09,189.02,10.88395565]
[1739730210227,0.03557925,189.07,189.04,0.0337751]
[1739730211329,0.03557925,189.07,188.96,10.88395565]
[1739730211533,204.88395565,189.09,188.96,10.88395565]
[1739730212026,10.88395565,189.06,188.95,5.2913]
[1739730212535,5.2903,189.0,188.99,0.03376901]
[1739730216738,5.2913,188.96,188.88,17.41710977]
[1739730216936,6.4364,189.01,188.88,17.41710977]
[1739730217534,5.2919,188.94,188.88,17.41710977]
[1739730218038,5.2919,188.94,188.89,0.03888044]
[1739730218039,0.03806393,188.93,188.89,0.03888044]
[1739730219439,0.03806393,188.93,188.89,5.33188044]
[1739730220043,0.03806393,188.93,188.89,0.03888044]
[1739730221545,0.03806393,188.93,188.89,5.33218044]
[1739730223547,0.03806393,188.93,188.91,5.2925]
[1739730224243,0.03806393,188.93,188.89,0.03888044]
[1739730224445,0.03806393,188.93,188.9,5.2929]
[1739730224745,0.03806393,188.93,188.89,0.03888044]
[1739730224948,0.03806393,188.93,188.91,5.2925]
[1739730225249,0.03806393,188.93,188.91,17.41710977]
[1739730226350,0.03806393,188.93,188.92,5.2924]
[1739730227944,0.03806393,188.93,188.91,17.41710977]
[1739730228144,0.03806393,188.93,188.92,5.2924]
[1739730232052,0.03806393,188.93,188.89,0.03888044]
[1739730233145,5.2925,188.92,188.89,0.03888044]
[1739730233350,0.03806393,188.93,188.89,0.03888044]
[1739730234351,5.2928,188.91,188.89,0.03888044]
[1739730234850,5.293,188.9,188.89,0.03888044]
[1739730235147,0.03806393,188.93,188.89,0.03888044]
[1739730236350,5.2925,188.92,188.89,0.03888044]
[1739730236748,0.03806393,188.93,188.89,0.03888044]
[1739730236947,5.2928,188.91,188.89,0.03888044]
[1739730237349,5.2924,188.92,188.89,0.03888044]
[1739730237755,0.03806393,188.93,188.89,0.03888044]
[1739730238248,5.2929,188.91,188.89,0.03888044]
[1739730238454,0.03806393,188.93,188.89,0.03888044]
[1739730239652,0.03806393,188.93,188.81,10.8963518]
[1739730239849,200.4375,188.93,188.81,10.8963518]
[1739730240252,5.294,188.87,188.81,16.1917518]
[1739730240856,0.03856169,188.86,188.82,5.32983475]
[1739730241650,0.03856169,188.86,188.82,0.03463475]
[1739730241958,5.2944,188.85,188.82,0.03463475]
[1739730242358,0.03856169,188.86,188.82,0.03463475]
[1739730244159,0.03856169,188.86,188.84,5.2946]
[1739730244358,0.03856169,188.86,188.82,0.03463475]
[1739730246059,5.2949,188.83,188.82,0.03463475]
[1739730248661,0.03856169,188.86,188.82,0.03463475]
[1739730249050,0.03856169,188.86,188.83,5.2949]
[1739730249252,0.03856169,188.86,188.82,0.03463475]
[1739730249457,0.03856169,188.86,188.84,10.8963518]
[1739730249657,0.03856169,188.86,188.85,5.2944]
[1739730251662,0.03856169,188.86,188.82,0.03463475]
[1739730253658,5.2949,188.83,188.82,3.475e-05]
[1739730253859,17.2704518,188.85,188.75,16.1935518]
[1739730254460,17.2704518,188.85,188.76,5.2968]
[1739730254755,17.2704518,188.85,188.75,10.8963518]
[1739730254959,0.03409191,188.82,188.79,0.03833547]
[1739730255359,5.2955,188.81,188.79,0.03833547]
[1739730255556,0.03409191,188.82,188.79,0.03833547]
[1739730255963,5.32959191,188.82,188.79,0.03833547]
[1739730257263,0.03409191,188.82,188.79,0.03833547]
[1739730258456,164.40368808,188.98,188.81,10.8963518]
[1739730258661,86.27293307,188.98,188.88,10.8963518]
[1739730259165,5.2916,188.95,188.88,10.8963518]
[1739730259764,0.03492493,188.93,188.9,0.03964282]
[1739730261559,5.2927,188.91,188.9,0.03964282]
[1739730261763,6.5373,188.92,188.82,10.8963518]
[1739730261958,3.1265,188.91,188.82,10.8963518]
[1739730262858,0.039238,188.88,188.85,0.03638141]
[1739730263067,0.039238,188.88,188.85,10.93273321]
[1739730263268,0.039238,188.88,188.86,5.2941]
[1739730263566,0.039238,188.88,188.85,10.93273321]
[1739730264369,0.039238,188.88,188.87,5.2938]
[1739730266268,0.039238,188.88,188.85,10.93273321]
[1739730267563,0.039238,188.88,188.85,16.22703321]
[1739730267772,0.039238,188.88,188.85,10.93273321]
[1739730268273,0.039238,188.88,188.86,5.2938]
[1739730268662,0.039238,188.88,188.85,10.93273321]
[1739730269367,0.039238,188.88,188.85,16.22703321]
[1739730269676,0.039238,188.88,188.85,10.93273321]
[1739730270271,0.039238,188.88,188.86,5.294]
[1739730270473,0.039238,188.88,188.85,10.93273321]
[1739730272266,0.039238,188.88,188.86,5.2939]
[1739730273967,0.039238,188.88,188.85,10.93273321]
[1739730274171,3.2675,188.99,188.85,10.93273321]
[1739730274366,10.8963518,189.01,188.9,10.8963518]
[1739730274872,5.2914,188.96,188.9,16.1891518]
[1739730275068,10.8963518,189.01,188.9,16.1891518]
[1739730275275,0.03876679,188.95,188.9,16.1891518]
[1739730275469,0.03876679,188.95,188.92,0.03622243]
[1739730278380,5.33036679,188.95,188.92,0.03622243]
[1739730278581,0.03876679,188.95,188.92,0.03622243]
[1739730278975,0.03876679,188.95,188.94,5.2919]
[1739730279874,9.9652,189.02,188.93,10.8963518]
[1739730280981,5.2913,188.97,188.93,10.8963518]
[1739730282579,5.2913,188.97,188.93,16.1884518]
[1739730282784,5.2908,188.98,188.93,16.1884518]
[1739730283182,0.0349848,188.99,188.95,5.2915]
[1739730284181,0.0349848,188.99,188.94,5.2918]
[1739730284383,0.0349848,188.99,188.93,10.8963518]
[1739730284777,0.0349848,188.99,188.95,5.2915]
[1739730286282,0.0349848,188.99,188.93,10.8963518]
[1739730286782,5.2911,188.97,188.93,10.8963518]
[1739730287977,0.0349848,188.99,188.92,0.03622243]
[1739730288584,5.2918,188.95,188.92,0.03622243]
[1739730288786,0.0349848,188.99,188.92,0.03622243]
[1739730289884,5.2918,188.95,188.92,0.03622243]
[1739730290085,0.0349848,188.99,188.92,0.03622243]
[1739730291599,5.2921,188.94,188.92,0.03622243]
[1739730296001,0.03581707,188.95,188.92,0.03622243]
[1739730296700,5.2921,188.94,188.92,0.03622243]
[1739730297101,0.03581707,188.95,188.92,0.03622243]
[1739730297301,5.32751707,188.95,188.92,0.03622243]
[1739730297502,0.03581707,188.95,188.92,0.03622243]
[1739730297799,0.03581707,188.95,188.93,10.8963518]
[1739730298502,0.03581707,188.95,188.93,16.1882518]
[1739730298702,0.03581707,188.95,188.93,10.8963518]
[1739730299504,0.03581707,188.95,188.94,5.2919]
[1739730300299,194.0,189.03,188.93,10.8963518]
[1739730300505,3.3247,189.06,188.97,10.8963518]
[1739730301196,3.3247,189.06,188.94,10.8963518]
[1739730301595,0.03845148,189.02,188.98,0.04019739]
[1739730302205,5.2905,188.99,188.98,0.04019739]
[1739730302705,5.2902,189.0,188.98,0.04019739]
[1739730302896,5.2902,189.0,188.99,6.96682096]
[1739730304906,5.2902,189.01,188.99,6.96682096]
[1739730305106,5.2902,189.01,189.0,6.96682096]
[1739730305306,0.03845148,189.02,189.0,6.96682096]
[1739730305603,5.32815148,189.02,189.0,6.96682096]
[1739730307600,5.2899,189.01,189.0,6.96682096]
[1739730309102,5.2905,188.99,188.98,7.00701835]
[1739730309302,5.2905,188.99,188.98,0.04019739]
[1739730312502,5.2905,188.99,188.98,7.00701835]
[1739730312811,0.03845148,189.02,188.98,7.00701835]
[1739730314814,5.2901,189.01,188.98,7.00701835]
[1739730315610,0.03845148,189.02,188.98,7.00701835]
[1739730316315,5.2902,189.0,188.98,7.00701835]
[1739730316914,5.2905,188.99,188.98,7.00701835]
[1739730320819,5.2903,189.0,188.98,7.00701835]
[1739730321118,0.03845148,189.02,188.98,7.00701835]
[1739730322322,5.2905,188.99,188.98,7.00701835]
[1739730323220,0.03845148,189.02,188.98,7.00701835]
[1739730323514,0.03845148,189.02,189.0,6.96682096]
[1739730325920,5.32815148,189.02,189.0,6.96682096]
[1739730329528,0.03845148,189.02,189.0,6.96682096]
[1739730329731,5.2899,189.01,189.0,6.96682096]
[1739730330329,0.03845148,189.02,189.0,6.96682096]
[1739730332735,0.03845148,189.02,189.0,12.25682096]
[1739730333729,0.03845148,189.02,189.0,6.96682096]
[1739730334932,5.32815148,189.02,189.0,6.96682096]
[1739730336425,5.2899,189.01,189.0,6.96682096]
[1739730336627,0.03845148,189.02,189.0,6.96682096]
[1739730337430,0.03845148,189.02,188.98,7.00701835]
[1739730338234,5.29,189.01,188.98,7.00701835]
[1739730339335,0.03845148,189.02,188.98,7.00701835]
[1739730339532,5.2903,189.0,188.98,7.00701835]
[1739730340435,0.03845148,189.02,188.98,7.00701835]
[1739730340436,5.32825148,189.02,188.98,7.00701835]
[1739730340831,5.2901,189.01,188.98,7.00701835]
[1739730343137,0.03845148,189.02,188.98,0.04019739]
[1739730343334,5.2905,188.99,188.98,0.04019739]
[1739730344737,5.2905,188.99,188.98,9.739e-05]
[1739730345734,12.25732096,188.99,188.98,9.739e-05]
[1739730361455,15.9,188.97,188.85,3.0848]
[1739730361757,6.96682096,188.91,188.84,13.36362096]
[1739730362051,5.2936,188.88,188.86,6.96682096]
[1739730362256,6.96682096,188.95,188.86,6.96682096]
[1739730362460,5.2927,188.92,188.89,6.96682096]
[1739730362755,0.03566573,188.92,188.91,6.96682096]
[1739730363753,194.0,188.96,188.93,5.2921]